[Event "*** Titled Tuesday Blitz"]
[Site "Chess.com"]
[Date "2020.10.27"]
[Round "6"]
[White "Miss_JJ20"]
[Black "sara_khm"]
[Result "0-1"]
[WhiteElo "2448"]
[BlackElo "2584"]
[TimeControl "180+1"]
[EndTime "11:05:44 PDT"]
[Termination "sara_khm won by resignation"]

1. d4 {[%clk 0:03:00.9]} 1... Nf6 {[%clk 0:02:56.6]} 2. Nf3 {[%clk 0:03:00.1]}
2... e6 {[%clk 0:02:56.4]} 3. c4 {[%clk 0:02:52.5]} 3... a6 {[%clk 0:02:53.9]}
4. g3 {[%clk 0:02:39.9]} 4... b5 {[%clk 0:02:53.4]} 5. b3 {[%clk 0:02:40.5]}
5... Bb7 {[%clk 0:02:51.6]} 6. Bg2 {[%clk 0:02:40.6]} 6... c5 {[%clk 0:02:46.4]}
7. O-O {[%clk 0:02:32.1]} 7... bxc4 {[%clk 0:02:45.3]} 8. bxc4 {[%clk 0:02:33]}
8... cxd4 {[%clk 0:02:45.8]} 9. Qxd4 {[%clk 0:02:26.9]} 9... Nc6 {[%clk
0:02:45.4]} 10. Qb2 {[%clk 0:02:15.5]} 10... Rb8 {[%clk 0:02:44.4]} 11. Bf4
{[%clk 0:02:15.7]} 11... d6 {[%clk 0:02:42.1]} 12. Nc3 {[%clk 0:02:09.9]} 12...
Nd4 {[%clk 0:02:23.1]} 13. Qd2 {[%clk 0:02:04]} 13... Nxf3+ {[%clk 0:02:20.6]}
14. exf3 {[%clk 0:02:00.7]} 14... Be7 {[%clk 0:02:20.2]} 15. Rfd1 {[%clk
0:01:58.2]} 15... e5 {[%clk 0:02:19.4]} 16. Be3 {[%clk 0:01:52.7]} 16... O-O
{[%clk 0:02:12.6]} 17. Rac1 {[%clk 0:01:43.2]} 17... Rc8 {[%clk 0:02:11.3]} 18.
Nd5 {[%clk 0:01:42.9]} 18... Nxd5 {[%clk 0:02:03.7]} 19. cxd5 {[%clk 0:01:43.8]}
19... f5 {[%clk 0:02:03.8]} 20. f4 {[%clk 0:01:28.9]} 20... e4 {[%clk
0:02:02.9]} 21. Bf1 {[%clk 0:01:25.9]} 21... Bf6 {[%clk 0:02:00.6]} 22. Rc6
{[%clk 0:01:26]} 22... Bxc6 {[%clk 0:01:41.9]} 23. dxc6 {[%clk 0:01:26.9]} 23...
d5 {[%clk 0:01:42.3]} 24. Bxa6 {[%clk 0:01:10.4]} 24... Rxc6 {[%clk 0:01:12.2]}
25. Bb7 {[%clk 0:01:10.1]} 25... Rc3 {[%clk 0:01:05.1]} 26. Bxd5+ {[%clk
0:00:37.8]} 26... Kh8 {[%clk 0:01:04.7]} 27. h4 {[%clk 0:00:34.3]} 27... Rd3
{[%clk 0:01:04]} 0-1

[Event "*** Titled Tuesday Blitz"]
[Site "Chess.com"]
[Date "2020.10.27"]
[Round "6"]
[White "guillembaches"]
[Black "HanSchut"]
[Result "1-0"]
[WhiteElo "2396"]
[BlackElo "2222"]
[TimeControl "180+1"]
[EndTime "11:05:44 PDT"]
[Termination "guillembaches won by resignation"]

1. e4 {[%clk 0:02:52.7]} 1... c5 {[%clk 0:02:59.4]} 2. Nf3 {[%clk 0:02:52.4]}
2... d6 {[%clk 0:02:59.6]} 3. d4 {[%clk 0:02:51.8]} 3... cxd4 {[%clk 0:03:00.2]}
4. Nxd4 {[%clk 0:02:52.7]} 4... Nf6 {[%clk 0:03:00.7]} 5. Nc3 {[%clk 0:02:53.4]}
5... a6 {[%clk 0:03:01.3]} 6. Be2 {[%clk 0:02:53.1]} 6... e5 {[%clk 0:03:01.1]}
7. Nf3 {[%clk 0:02:53.4]} 7... Be7 {[%clk 0:03:01.7]} 8. Bg5 {[%clk 0:02:53.9]}
8... Nbd7 {[%clk 0:02:56.2]} 9. a4 {[%clk 0:02:52.3]} 9... b6 {[%clk 0:02:55.3]}
10. Nd2 {[%clk 0:02:51.2]} 10... Bb7 {[%clk 0:02:53.9]} 11. Nc4 {[%clk
0:02:49.3]} 11... Qc7 {[%clk 0:02:24.5]} 12. f3 {[%clk 0:02:31.2]} 12... O-O
{[%clk 0:02:18.1]} 13. Ne3 {[%clk 0:02:22.8]} 13... Rfe8 {[%clk 0:02:14.7]} 14.
O-O {[%clk 0:02:11]} 14... h6 {[%clk 0:01:59.6]} 15. Bxf6 {[%clk 0:02:10.7]}
15... Nxf6 {[%clk 0:01:59.3]} 16. Bc4 {[%clk 0:02:03.6]} 16... d5 {[%clk
0:01:04]} 17. Ncxd5 {[%clk 0:01:53.2]} 17... Nxd5 {[%clk 0:00:52.2]} 18. Bxd5
{[%clk 0:01:48.5]} 18... Bc5 {[%clk 0:00:51.7]} 19. Qd3 {[%clk 0:01:42]} 19...
Rad8 {[%clk 0:00:49.3]} 20. c4 {[%clk 0:01:38.1]} 20... b5 {[%clk 0:00:49.6]}
21. axb5 {[%clk 0:01:32.7]} 21... axb5 {[%clk 0:00:49.7]} 22. b3 {[%clk
0:01:30.1]} 22... Qb6 {[%clk 0:00:44.4]} 23. Rfe1 {[%clk 0:01:23.6]} 23... bxc4
{[%clk 0:00:24.9]} 24. bxc4 {[%clk 0:01:20.1]} 24... Kh8 {[%clk 0:00:15]} 25.
Rab1 {[%clk 0:01:14.6]} 25... Bxe3+ {[%clk 0:00:09.7]} 26. Rxe3 {[%clk 0:01:06]}
26... Qxe3+ {[%clk 0:00:02.7]} 27. Qxe3 {[%clk 0:01:05.2]} 27... Bxd5 {[%clk
0:00:03.6]} 1-0

[Event "*** Titled Tuesday Blitz"]
[Site "Chess.com"]
[Date "2020.10.27"]
[Round "6"]
[White "parintele_chess"]
[Black "MarkEvgenievich"]
[Result "0-1"]
[WhiteElo "2148"]
[BlackElo "2312"]
[TimeControl "180+1"]
[EndTime "11:05:46 PDT"]
[Termination "MarkEvgenievich won by resignation"]

1. e4 {[%clk 0:03:00]} 1... c5 {[%clk 0:02:59.3]} 2. Nc3 {[%clk 0:02:59.4]} 2...
Nc6 {[%clk 0:02:59.4]} 3. f4 {[%clk 0:02:59.4]} 3... g6 {[%clk 0:02:59.1]} 4.
Nf3 {[%clk 0:02:59.3]} 4... Bg7 {[%clk 0:02:59.3]} 5. g3 {[%clk 0:02:59.8]} 5...
d6 {[%clk 0:02:58]} 6. Bg2 {[%clk 0:03:00]} 6... e6 {[%clk 0:02:58.2]} 7. O-O
{[%clk 0:02:59.9]} 7... Nge7 {[%clk 0:02:58.6]} 8. d3 {[%clk 0:02:58.6]} 8...
O-O {[%clk 0:02:59]} 9. Be3 {[%clk 0:02:58.3]} 9... Nd4 {[%clk 0:02:58.9]} 10.
h3 {[%clk 0:02:49.7]} 10... Rb8 {[%clk 0:02:57.4]} 11. Ne2 {[%clk 0:02:46.6]}
11... Nxf3+ {[%clk 0:02:50.2]} 12. Rxf3 {[%clk 0:02:45.7]} 12... Bxb2 {[%clk
0:02:50.4]} 13. Rb1 {[%clk 0:02:45.4]} 13... Bg7 {[%clk 0:02:49.6]} 14. g4
{[%clk 0:02:42.5]} 14... Nc6 {[%clk 0:02:47]} 15. Ng3 {[%clk 0:02:41.2]} 15...
f5 {[%clk 0:02:42.3]} 16. gxf5 {[%clk 0:02:28.6]} 16... exf5 {[%clk 0:02:43.2]}
17. exf5 {[%clk 0:02:28.8]} 17... Bxf5 {[%clk 0:02:39]} 18. Nxf5 {[%clk
0:02:28.8]} 18... Rxf5 {[%clk 0:02:38.5]} 19. Rg3 {[%clk 0:02:26.5]} 19... Bd4
{[%clk 0:02:31.7]} 20. Kh2 {[%clk 0:02:24.1]} 20... Bxe3 {[%clk 0:02:29.3]} 21.
Rxe3 {[%clk 0:02:25]} 21... Rxf4 {[%clk 0:02:27.6]} 22. Bd5+ {[%clk 0:02:20.3]}
22... Kh8 {[%clk 0:02:24]} 23. Qe2 {[%clk 0:02:10.4]} 23... Nd4 {[%clk
0:02:14.6]} 24. Qg2 {[%clk 0:02:10.1]} 24... Qf6 {[%clk 0:02:11.5]} 25. Kg1
{[%clk 0:01:54.6]} 25... b6 {[%clk 0:02:07.1]} 26. Rbe1 {[%clk 0:01:52.4]} 26...
Rf8 {[%clk 0:02:05.6]} 27. Re8 {[%clk 0:01:47.7]} 27... Rf5 {[%clk 0:01:49.7]}
28. c3 {[%clk 0:01:33.9]} 28... Nf3+ {[%clk 0:01:10.1]} 29. Bxf3 {[%clk
0:01:29.9]} 29... Rxf3 {[%clk 0:01:11]} 30. c4 {[%clk 0:01:06.6]} 30... Kg7
{[%clk 0:00:54]} 31. R1e7+ {[%clk 0:01:04.8]} 31... Rf7 {[%clk 0:00:51.7]} 32.
Qe2 {[%clk 0:00:55.3]} 32... Rf1+ {[%clk 0:00:49.3]} 33. Kg2 {[%clk 0:00:50.2]}
33... Rf2+ {[%clk 0:00:49.3]} 0-1

[Event "*** Titled Tuesday Blitz"]
[Site "Chess.com"]
[Date "2020.10.27"]
[Round "6"]
[White "MrChampion_Coach"]
[Black "natelleka"]
[Result "1-0"]
[WhiteElo "2425"]
[BlackElo "2196"]
[TimeControl "180+1"]
[EndTime "11:05:47 PDT"]
[Termination "MrChampion_Coach won on time"]

1. d4 {[%clk 0:03:00.9]} 1... d5 {[%clk 0:02:59.9]} 2. c4 {[%clk 0:02:59.2]}
2... c5 {[%clk 0:03:00.1]} 3. Nc3 {[%clk 0:02:49.3]} 3... cxd4 {[%clk
0:02:59.3]} 4. Qxd4 {[%clk 0:02:48.5]} 4... Nc6 {[%clk 0:02:59.5]} 5. Qxd5
{[%clk 0:02:48.3]} 5... Be6 {[%clk 0:02:59.7]} 6. Qb5 {[%clk 0:02:42.4]} 6... a6
{[%clk 0:02:59.8]} 7. Qa4 {[%clk 0:02:41.8]} 7... b5 {[%clk 0:01:48.4]} 8. cxb5
{[%clk 0:02:35.7]} 8... axb5 {[%clk 0:01:46.6]} 9. Qxb5 {[%clk 0:02:35]} 9...
Qd7 {[%clk 0:01:39.4]} 10. Nf3 {[%clk 0:02:16.8]} 10... Ra5 {[%clk 0:01:34]} 11.
Qb6 {[%clk 0:02:08.6]} 11... Nf6 {[%clk 0:01:09.7]} 12. e4 {[%clk 0:02:01.3]}
12... g6 {[%clk 0:00:27.5]} 13. Bb5 {[%clk 0:01:58.1]} 13... Rxb5 {[%clk
0:00:25.2]} 14. Nxb5 {[%clk 0:01:53.3]} 14... Bg7 {[%clk 0:00:17.3]} 15. Nc7+
{[%clk 0:01:49.5]} 15... Kf8 {[%clk 0:00:17.4]} 16. O-O {[%clk 0:01:40.6]} 16...
Nxe4 {[%clk 0:00:16.7]} 17. Re1 {[%clk 0:01:22]} 17... f5 {[%clk 0:00:11.3]} 18.
Nxe6+ {[%clk 0:01:19.3]} 18... Qxe6 {[%clk 0:00:11]} 19. Ng5 {[%clk 0:01:19.4]}
19... Qd5 {[%clk 0:00:08.4]} 20. Nxe4 {[%clk 0:01:15.3]} 20... fxe4 {[%clk
0:00:07.8]} 21. Be3 {[%clk 0:01:12.3]} 21... Kf7 {[%clk 0:00:06]} 22. Rad1
{[%clk 0:01:12.4]} 22... Qe6 {[%clk 0:00:05.1]} 23. Rc1 {[%clk 0:01:07.1]} 23...
Rc8 {[%clk 0:00:04.8]} 24. Qb7 {[%clk 0:01:05.3]} 24... Bf6 {[%clk 0:00:02.5]}
25. b4 {[%clk 0:01:03.9]} 1-0

[Event "*** Titled Tuesday Blitz"]
[Site "Chess.com"]
[Date "2020.10.27"]
[Round "6"]
[White "Lagmantr"]
[Black "Zhuu96"]
[Result "0-1"]
[WhiteElo "2743"]
[BlackElo "2889"]
[TimeControl "180+1"]
[EndTime "11:05:55 PDT"]
[Termination "Zhuu96 won by checkmate"]

1. e4 {[%clk 0:02:52.8]} 1... g6 {[%clk 0:02:55.8]} 2. g3 {[%clk 0:02:50.2]}
2... Bg7 {[%clk 0:02:55.5]} 3. Bg2 {[%clk 0:02:50.8]} 3... c5 {[%clk 0:02:54.8]}
4. Ne2 {[%clk 0:02:50.8]} 4... Nc6 {[%clk 0:02:55.5]} 5. O-O {[%clk 0:02:50.6]}
5... d6 {[%clk 0:02:56.1]} 6. d3 {[%clk 0:02:44.8]} 6... Rb8 {[%clk 0:02:55.1]}
7. Nbc3 {[%clk 0:02:40.1]} 7... b5 {[%clk 0:02:54.1]} 8. Be3 {[%clk 0:02:39.4]}
8... b4 {[%clk 0:02:53]} 9. Na4 {[%clk 0:02:35.7]} 9... Qa5 {[%clk 0:02:52.1]}
10. c3 {[%clk 0:02:30]} 10... Ba6 {[%clk 0:02:50.6]} 11. f4 {[%clk 0:02:06.5]}
11... Bb5 {[%clk 0:02:43.6]} 12. b3 {[%clk 0:02:02.2]} 12... bxc3 {[%clk
0:02:43.4]} 13. Rc1 {[%clk 0:01:57.8]} 13... Bxa4 {[%clk 0:02:39.3]} 14. bxa4
{[%clk 0:01:58.7]} 14... Nh6 {[%clk 0:02:13.8]} 15. d4 {[%clk 0:01:48.1]} 15...
Ng4 {[%clk 0:02:11.2]} 16. e5 {[%clk 0:01:41.2]} 16... Nxe3 {[%clk 0:02:09.4]}
17. Bxc6+ {[%clk 0:01:40.3]} 17... Kf8 {[%clk 0:02:09.4]} 18. Qd3 {[%clk
0:01:35.8]} 18... Nxf1 {[%clk 0:02:09.5]} 19. Rxf1 {[%clk 0:01:36.7]} 19... cxd4
{[%clk 0:02:09.7]} 20. exd6 {[%clk 0:01:18.3]} 20... exd6 {[%clk 0:02:00.2]} 21.
f5 {[%clk 0:01:18.6]} 21... Qe5 {[%clk 0:01:43.6]} 22. fxg6 {[%clk 0:01:18.8]}
22... hxg6 {[%clk 0:01:39.1]} 23. Qxg6 {[%clk 0:01:05.7]} 23... f6 {[%clk
0:01:28.5]} 24. Nf4 {[%clk 0:00:35.2]} 24... Rb2 {[%clk 0:01:22.8]} 25. Bg2
{[%clk 0:00:26.5]} 25... c2 {[%clk 0:01:13.3]} 26. Nd3 {[%clk 0:00:09.1]} 26...
Qe3+ {[%clk 0:01:10.8]} 27. Kh1 {[%clk 0:00:09.5]} 27... Rb1 {[%clk 0:01:10.5]}
28. Bd5 {[%clk 0:00:04.3]} 28... Rxf1+ {[%clk 0:01:09.3]} 29. Kg2 {[%clk
0:00:05.2]} 29... Qg1# {[%clk 0:01:10]} 0-1

[Event "*** Titled Tuesday Blitz"]
[Site "Chess.com"]
[Date "2020.10.27"]
[Round "6"]
[White "WanderingPuppet"]
[Black "bangchess21"]
[Result "1-0"]
[WhiteElo "2514"]
[BlackElo "2688"]
[TimeControl "180+1"]
[EndTime "11:06:00 PDT"]
[Termination "WanderingPuppet won by resignation"]

1. e4 {[%clk 0:02:56.7]} 1... c6 {[%clk 0:02:59.9]} 2. Nc3 {[%clk 0:02:50.6]}
2... d5 {[%clk 0:03:00.8]} 3. Nf3 {[%clk 0:02:44.6]} 3... Nf6 {[%clk 0:03:00.6]}
4. e5 {[%clk 0:02:38.9]} 4... Ne4 {[%clk 0:03:00.5]} 5. d4 {[%clk 0:02:34.3]}
5... Nxc3 {[%clk 0:02:59.4]} 6. bxc3 {[%clk 0:02:35.2]} 6... c5 {[%clk 0:03:00]}
7. Bd3 {[%clk 0:02:30]} 7... Nc6 {[%clk 0:02:58.5]} 8. Rb1 {[%clk 0:02:21.7]}
8... e6 {[%clk 0:02:57]} 9. O-O {[%clk 0:02:19]} 9... Be7 {[%clk 0:02:56.3]} 10.
Re1 {[%clk 0:02:14.9]} 10... O-O {[%clk 0:02:53.9]} 11. h3 {[%clk 0:02:12]}
11... Qa5 {[%clk 0:02:47.5]} 12. Bd2 {[%clk 0:02:09]} 12... c4 {[%clk
0:02:47.4]} 13. Be2 {[%clk 0:02:00.2]} 13... f6 {[%clk 0:02:43.9]} 14. exf6
{[%clk 0:01:54.6]} 14... Bxf6 {[%clk 0:02:42.7]} 15. Nh2 {[%clk 0:01:51.7]}
15... Qc7 {[%clk 0:02:36.3]} 16. Bg4 {[%clk 0:01:47.2]} 16... e5 {[%clk
0:02:31.7]} 17. dxe5 {[%clk 0:01:33]} 17... Bxe5 {[%clk 0:02:29.2]} 18. Nf3
{[%clk 0:01:29.2]} 18... Bxg4 {[%clk 0:02:28.6]} 19. hxg4 {[%clk 0:01:30.1]}
19... Rad8 {[%clk 0:02:01.7]} 20. Re2 {[%clk 0:01:03]} 20... b6 {[%clk
0:01:50.7]} 21. Qe1 {[%clk 0:00:56.8]} 21... Bf4 {[%clk 0:01:39.8]} 22. Rd1
{[%clk 0:00:49.4]} 22... Rd7 {[%clk 0:01:31.4]} 23. Re8 {[%clk 0:00:38.1]} 23...
Bd6 {[%clk 0:01:24.1]} 24. Qe6+ {[%clk 0:00:36.4]} 24... Kh8 {[%clk 0:01:24.6]}
25. Ng5 {[%clk 0:00:29.8]} 25... Nd8 {[%clk 0:01:24.4]} 26. Qf5 {[%clk
0:00:23.9]} 26... g6 {[%clk 0:00:44.3]} 27. Rxf8+ {[%clk 0:00:19.9]} 27... Kg7
{[%clk 0:00:44.6]} 28. Qf6+ {[%clk 0:00:18.9]} 28... Kh6 {[%clk 0:00:45.1]} 29.
Ne6+ {[%clk 0:00:18.5]} 1-0

[Event "*** Titled Tuesday Blitz"]
[Site "Chess.com"]
[Date "2020.10.27"]
[Round "6"]
[White "maximnovik"]
[Black "A-Fier"]
[Result "0-1"]
[WhiteElo "2519"]
[BlackElo "2777"]
[TimeControl "180+1"]
[EndTime "11:06:03 PDT"]
[Termination "A-Fier won by resignation"]

1. d4 {[%clk 0:02:37.1]} 1... Nf6 {[%clk 0:02:59.6]} 2. c4 {[%clk 0:02:36.8]}
2... c5 {[%clk 0:02:59.8]} 3. d5 {[%clk 0:02:35.5]} 3... e6 {[%clk 0:03:00.2]}
4. Nc3 {[%clk 0:02:35.2]} 4... exd5 {[%clk 0:03:00.9]} 5. cxd5 {[%clk
0:02:35.2]} 5... d6 {[%clk 0:03:01.3]} 6. e4 {[%clk 0:02:32]} 6... g6 {[%clk
0:03:01.6]} 7. h3 {[%clk 0:02:31.7]} 7... Bg7 {[%clk 0:03:01.7]} 8. Nf3 {[%clk
0:02:32.2]} 8... Nbd7 {[%clk 0:02:59.5]} 9. Bd3 {[%clk 0:02:31.9]} 9... a6
{[%clk 0:02:59.7]} 10. a4 {[%clk 0:02:29.4]} 10... Nh5 {[%clk 0:03:00]} 11. O-O
{[%clk 0:02:28.4]} 11... Ne5 {[%clk 0:02:54.3]} 12. Bc2 {[%clk 0:02:24.7]} 12...
O-O {[%clk 0:02:46.8]} 13. Nxe5 {[%clk 0:01:50.7]} 13... Bxe5 {[%clk 0:02:47.7]}
14. f4 {[%clk 0:01:50.4]} 14... Bd4+ {[%clk 0:02:46.3]} 15. Kh2 {[%clk
0:01:50.9]} 15... Rb8 {[%clk 0:02:29.5]} 16. Qf3 {[%clk 0:01:36.9]} 16... b5
{[%clk 0:02:26.5]} 17. axb5 {[%clk 0:01:36.3]} 17... axb5 {[%clk 0:02:27.4]} 18.
Ne2 {[%clk 0:01:32]} 18... Bg7 {[%clk 0:02:24.3]} 19. g4 {[%clk 0:01:27.6]}
19... Nf6 {[%clk 0:02:24.4]} 20. Ng3 {[%clk 0:01:27.6]} 20... Nd7 {[%clk
0:02:23.2]} 21. g5 {[%clk 0:01:26.1]} 21... c4 {[%clk 0:02:21.6]} 22. h4 {[%clk
0:01:24.5]} 22... b4 {[%clk 0:02:19.5]} 23. h5 {[%clk 0:01:20.9]} 23... b3
{[%clk 0:02:19.7]} 24. Bb1 {[%clk 0:01:20.1]} 24... Qc7 {[%clk 0:02:14.6]} 25.
h6 {[%clk 0:01:18.8]} 25... Bh8 {[%clk 0:02:09.8]} 26. Bd2 {[%clk 0:01:19.2]}
26... Bxb2 {[%clk 0:02:00.3]} 27. Bc3 {[%clk 0:00:52]} 27... Bxa1 {[%clk
0:01:59.6]} 28. Bxa1 {[%clk 0:00:52]} 28... b2 {[%clk 0:02:00.1]} 29. Qc3 {[%clk
0:00:51.4]} 29... bxa1=Q {[%clk 0:01:58.5]} 30. Qxa1 {[%clk 0:00:48.5]} 30... c3
{[%clk 0:01:57.8]} 31. Rc1 {[%clk 0:00:46.4]} 31... Qb6 {[%clk 0:01:53.6]} 32.
Rc2 {[%clk 0:00:38.6]} 32... Qxb1 {[%clk 0:01:42]} 33. Qxc3 {[%clk 0:00:38.3]}
33... f6 {[%clk 0:01:42.6]} 34. e5 {[%clk 0:00:16.9]} 34... Rb3 {[%clk
0:01:33.9]} 35. Qc6 {[%clk 0:00:14.8]} 35... Rb2 {[%clk 0:01:17.5]} 36. Rxb2
{[%clk 0:00:12.5]} 36... Qxb2+ {[%clk 0:01:18.4]} 37. Kg1 {[%clk 0:00:11.6]}
37... Qb6+ {[%clk 0:01:18.6]} 0-1

[Event "*** Titled Tuesday Blitz"]
[Site "Chess.com"]
[Date "2020.10.27"]
[Round "6"]
[White "maxip32"]
[Black "Dream2World_Number1"]
[Result "1-0"]
[WhiteElo "2406"]
[BlackElo "2062"]
[TimeControl "180+1"]
[EndTime "11:06:05 PDT"]
[Termination "maxip32 won by resignation"]

1. e4 {[%clk 0:03:00.9]} 1... e5 {[%clk 0:02:59.9]} 2. Nf3 {[%clk 0:02:59.7]}
2... Nc6 {[%clk 0:03:00.1]} 3. Bc4 {[%clk 0:02:58.7]} 3... Nf6 {[%clk
0:02:59.8]} 4. d3 {[%clk 0:02:58.1]} 4... Bc5 {[%clk 0:03:00.1]} 5. O-O {[%clk
0:02:57]} 5... O-O {[%clk 0:03:00.3]} 6. a4 {[%clk 0:02:51.1]} 6... a5 {[%clk
0:02:58.9]} 7. Nbd2 {[%clk 0:02:48.7]} 7... d5 {[%clk 0:02:57.7]} 8. exd5 {[%clk
0:02:48.4]} 8... Nxd5 {[%clk 0:02:58.6]} 9. Re1 {[%clk 0:02:49.1]} 9... Nb6
{[%clk 0:02:54.1]} 10. Bb3 {[%clk 0:02:46.8]} 10... Bg4 {[%clk 0:02:50.3]} 11.
Ne4 {[%clk 0:02:44.4]} 11... Bd6 {[%clk 0:02:48.7]} 12. c3 {[%clk 0:02:27.6]}
12... h6 {[%clk 0:02:20]} 13. Ng3 {[%clk 0:02:24.4]} 13... e4 {[%clk 0:02:03.6]}
14. Rxe4 {[%clk 0:02:14.6]} 14... Ne5 {[%clk 0:02:00.2]} 15. Bf4 {[%clk
0:01:44.2]} 15... Nxf3+ {[%clk 0:01:42]} 16. gxf3 {[%clk 0:01:45.1]} 16... Bd7
{[%clk 0:01:40.8]} 17. Bxd6 {[%clk 0:01:43.7]} 17... cxd6 {[%clk 0:01:41.7]} 18.
d4 {[%clk 0:01:36.2]} 18... d5 {[%clk 0:01:41.8]} 19. Re5 {[%clk 0:01:31.9]}
19... Be6 {[%clk 0:01:39.4]} 20. Bc2 {[%clk 0:01:26.9]} 20... Nd7 {[%clk
0:01:36.9]} 21. Qd3 {[%clk 0:01:22.9]} 21... Nf6 {[%clk 0:01:23.3]} 22. Rae1
{[%clk 0:01:03.8]} 22... Re8 {[%clk 0:01:19.7]} 23. f4 {[%clk 0:01:02]} 23...
Ng4 {[%clk 0:00:51.1]} 24. Qh7+ {[%clk 0:00:41.9]} 24... Kf8 {[%clk 0:00:51.1]}
25. Qh8+ {[%clk 0:00:30.2]} 25... Ke7 {[%clk 0:00:49.5]} 26. Rxe6+ {[%clk
0:00:30.8]} 26... fxe6 {[%clk 0:00:48.5]} 27. Qxg7+ {[%clk 0:00:31]} 27... Kd6
{[%clk 0:00:49.4]} 28. Qxg4 {[%clk 0:00:30.9]} 28... Rg8 {[%clk 0:00:48.8]} 29.
Qxe6+ {[%clk 0:00:28.7]} 29... Kc7 {[%clk 0:00:48.7]} 30. Qf7+ {[%clk
0:00:24.7]} 30... Kb6 {[%clk 0:00:48.5]} 31. Re7 {[%clk 0:00:21.4]} 31... Ka7
{[%clk 0:00:48.8]} 1-0

[Event "*** Titled Tuesday Blitz"]
[Site "Chess.com"]
[Date "2020.10.27"]
[Round "6"]
[White "Chernobay_Artem"]
[Black "geordie_derraugh"]
[Result "1-0"]
[WhiteElo "2608"]
[BlackElo "2415"]
[TimeControl "180+1"]
[EndTime "11:06:11 PDT"]
[Termination "Chernobay_Artem won on time"]

1. d4 {[%clk 0:03:00.9]} 1... Nf6 {[%clk 0:03:00.2]} 2. c4 {[%clk 0:02:59.3]}
2... e6 {[%clk 0:03:00.1]} 3. Nc3 {[%clk 0:02:59.7]} 3... Bb4 {[%clk 0:03:00]}
4. e3 {[%clk 0:02:56.5]} 4... O-O {[%clk 0:02:59.5]} 5. Ne2 {[%clk 0:02:48.5]}
5... Re8 {[%clk 0:02:59.1]} 6. a3 {[%clk 0:02:47.3]} 6... Bf8 {[%clk 0:02:59.2]}
7. Ng3 {[%clk 0:02:40.9]} 7... d5 {[%clk 0:02:59.1]} 8. cxd5 {[%clk 0:02:27.3]}
8... exd5 {[%clk 0:03:00]} 9. Bd3 {[%clk 0:02:26.7]} 9... g6 {[%clk 0:02:48.9]}
10. O-O {[%clk 0:02:20.4]} 10... h5 {[%clk 0:02:46.7]} 11. h3 {[%clk 0:02:20.1]}
11... c5 {[%clk 0:02:26.8]} 12. dxc5 {[%clk 0:02:13.3]} 12... Bxc5 {[%clk
0:02:26.8]} 13. b4 {[%clk 0:02:10.1]} 13... Bd6 {[%clk 0:02:24.2]} 14. Bb2
{[%clk 0:02:01]} 14... Bxg3 {[%clk 0:01:57.3]} 15. fxg3 {[%clk 0:02:00.6]} 15...
Rxe3 {[%clk 0:01:57.4]} 16. Qd2 {[%clk 0:01:39.4]} 16... d4 {[%clk 0:01:34.8]}
17. Ne2 {[%clk 0:01:15.9]} 17... Nc6 {[%clk 0:00:58]} 18. Nxd4 {[%clk
0:01:13.8]} 18... Rxg3 {[%clk 0:00:29.4]} 19. Nxc6 {[%clk 0:00:58.8]} 19... bxc6
{[%clk 0:00:17.8]} 20. Bxf6 {[%clk 0:00:40.2]} 20... Qxd3 {[%clk 0:00:09.4]} 21.
Rae1 {[%clk 0:00:40]} 21... Be6 {[%clk 0:00:03.9]} 22. Qh6 {[%clk 0:00:37.9]}
22... Rxg2+ {[%clk 0:00:03.8]} 23. Kxg2 {[%clk 0:00:35.9]} 23... Qxh3+ {[%clk
0:00:01.2]} 24. Kf2 {[%clk 0:00:35.8]} 1-0

[Event "*** Titled Tuesday Blitz"]
[Site "Chess.com"]
[Date "2020.10.27"]
[Round "6"]
[White "Ginger_GM"]
[Black "Ze-Pequeno"]
[Result "1-0"]
[WhiteElo "2580"]
[BlackElo "2324"]
[TimeControl "180+1"]
[EndTime "11:06:11 PDT"]
[Termination "Ginger_GM won on time"]

1. e4 {[%clk 0:03:00.9]} 1... e5 {[%clk 0:02:59.1]} 2. f4 {[%clk 0:02:56.3]}
2... exf4 {[%clk 0:02:58.9]} 3. Bc4 {[%clk 0:02:55.3]} 3... Qh4+ {[%clk
0:02:57]} 4. Kf1 {[%clk 0:02:55]} 4... Nf6 {[%clk 0:02:44.4]} 5. Nc3 {[%clk
0:02:52.8]} 5... c6 {[%clk 0:02:37.6]} 6. Nf3 {[%clk 0:02:46.7]} 6... Qh5 {[%clk
0:02:35.5]} 7. Qe2 {[%clk 0:02:15.6]} 7... d6 {[%clk 0:01:52.2]} 8. d4 {[%clk
0:02:09.9]} 8... g5 {[%clk 0:01:40.7]} 9. e5 {[%clk 0:02:07.9]} 9... dxe5 {[%clk
0:01:16.6]} 10. Qxe5+ {[%clk 0:01:39]} 10... Be7 {[%clk 0:01:15.1]} 11. Nxg5
{[%clk 0:01:38.6]} 11... O-O {[%clk 0:00:38.2]} 12. Bxf4 {[%clk 0:01:19.3]}
12... Qg4 {[%clk 0:00:13.9]} 13. Re1 {[%clk 0:00:36.5]} 13... Nbd7 {[%clk
0:00:11.5]} 14. Qe3 {[%clk 0:00:32.5]} 14... Bb4 {[%clk 0:00:07.9]} 15. h3
{[%clk 0:00:31.4]} 15... Qf5 {[%clk 0:00:07.7]} 16. Bd3 {[%clk 0:00:31.2]} 16...
Qa5 {[%clk 0:00:06.4]} 17. Be5 {[%clk 0:00:21]} 1-0